[Event "Live Chess"]
[Site "Chess.com"]
[Date "2024.06.01"]
[Round "-"]
[White "MellowAesthetic"]
[Black "Yegorych"]
[Result "1-0"]
[WhiteElo "2077"]
[BlackElo "1620"]
[TimeControl "300"]
[EndTime "11:50:08 PDT"]
[Termination "MellowAesthetic won by checkmate"]

1. e4 {[%clk 0:04:58.8]} 1... d5 {[%clk 0:04:55.2]} 2. exd5 {[%clk 0:04:57.4]}
2... Nf6 {[%clk 0:04:54.5]} 3. d4 {[%clk 0:04:56.2]} 3... Bg4 {[%clk 0:04:52.2]}
4. Nf3 {[%clk 0:04:54.6]} 4... Qxd5 {[%clk 0:04:50.7]} 5. Be2 {[%clk 0:04:53.8]}
5... Nc6 {[%clk 0:04:47.6]} 6. c4 {[%clk 0:04:46.8]} 6... Qh5 {[%clk 0:04:45.5]}
7. Be3 {[%clk 0:04:43.9]} 7... O-O-O {[%clk 0:04:40.9]} 8. Nbd2 {[%clk
0:04:43.1]} 8... e5 {[%clk 0:04:33.6]} 9. d5 {[%clk 0:04:42.4]} 9... Nd4 {[%clk
0:04:28.7]} 10. Nxd4 {[%clk 0:04:37.7]} 10... exd4 {[%clk 0:04:24.3]} 11. Bxg4+
{[%clk 0:04:34.6]} 11... Qxg4 {[%clk 0:04:13.8]} 12. Qxg4+ {[%clk 0:04:30.1]}
12... Nxg4 {[%clk 0:04:13.7]} 13. Bxd4 {[%clk 0:04:28.9]} 13... Re8+ {[%clk
0:04:07.6]} 14. Kf1 {[%clk 0:04:16]} 14... Bb4 {[%clk 0:04:03.4]} 15. Rd1 {[%clk
0:03:51.8]} 15... f5 {[%clk 0:03:47.3]} 16. h3 {[%clk 0:03:44.2]} 16... Ne5
{[%clk 0:03:44.6]} 17. b3 {[%clk 0:02:55.7]} 17... Rhf8 {[%clk 0:03:28.4]} 18.
Nb1 {[%clk 0:02:25.6]} 18... g5 {[%clk 0:03:19.4]} 19. a3 {[%clk 0:01:58.1]}
19... c5 {[%clk 0:02:20.2]} 20. Bxe5 {[%clk 0:01:48.7]} 20... Rxe5 {[%clk
0:02:06.7]} 21. axb4 {[%clk 0:01:47.2]} 21... cxb4 {[%clk 0:02:04.2]} 22. Re1
{[%clk 0:01:44.7]} 22... Rfe8 {[%clk 0:01:59.6]} 23. Rxe5 {[%clk 0:01:43.4]}
23... Rxe5 {[%clk 0:01:58.6]} 24. Nd2 {[%clk 0:01:31.4]} 24... h5 {[%clk
0:01:45.9]} 25. f3 {[%clk 0:01:30.6]} 25... h4 {[%clk 0:01:40.5]} 26. Kf2 {[%clk
0:01:29.1]} 26... Kd7 {[%clk 0:01:32.7]} 27. Re1 {[%clk 0:01:28]} 27... Kd6
{[%clk 0:01:31.8]} 28. Rxe5 {[%clk 0:01:25.8]} 28... Kxe5 {[%clk 0:01:29.9]} 29.
Ke3 {[%clk 0:01:25.2]} 29... a5 {[%clk 0:01:22.7]} 30. f4+ {[%clk 0:01:19.8]}
30... gxf4+ {[%clk 0:01:10.2]} 31. Kd3 {[%clk 0:01:19.2]} 31... b5 {[%clk
0:01:07]} 32. Nf3+ {[%clk 0:01:13.7]} 32... Kd6 {[%clk 0:01:05.1]} 33. cxb5
{[%clk 0:01:01.1]} 33... Kxd5 {[%clk 0:01:01.8]} 34. Nxh4 {[%clk 0:01:00.7]}
34... Kc5 {[%clk 0:00:57]} 35. Nxf5 {[%clk 0:00:59.9]} 35... Kxb5 {[%clk
0:00:56.1]} 36. h4 {[%clk 0:00:59.4]} 36... a4 {[%clk 0:00:54.9]} 37. bxa4+
{[%clk 0:00:56.5]} 37... Kxa4 {[%clk 0:00:54.8]} 38. Kc2 {[%clk 0:00:54.9]}
38... Ka3 {[%clk 0:00:53.3]} 39. Kb1 {[%clk 0:00:54]} 39... Kb3 {[%clk
0:00:52.3]} 40. h5 {[%clk 0:00:52.8]} 40... Kc4 {[%clk 0:00:52.2]} 41. h6 {[%clk
0:00:52.2]} 41... Kd5 {[%clk 0:00:52]} 42. h7 {[%clk 0:00:51.4]} 42... b3 {[%clk
0:00:31.9]} 43. h8=Q {[%clk 0:00:49]} 43... f3 {[%clk 0:00:27.3]} 44. gxf3
{[%clk 0:00:47.3]} 44... Kc4 {[%clk 0:00:22.9]} 45. Qd4+ {[%clk 0:00:45.2]}
45... Kb5 {[%clk 0:00:20.9]} 46. Qc3 {[%clk 0:00:44.8]} 46... Ka4 {[%clk
0:00:19.6]} 47. Nd4 {[%clk 0:00:42.8]} 47... Ka3 {[%clk 0:00:17.9]} 48. Qxb3#
{[%clk 0:00:42]} 1-0

[Event "Live Chess"]
[Site "Chess.com"]
[Date "2024.06.01"]
[Round "-"]
[White "Nazar-Makarchuk"]
[Black "GerardATHart"]
[Result "1-0"]
[WhiteElo "1615"]
[BlackElo "1418"]
[TimeControl "300"]
[EndTime "11:50:25 PDT"]
[Termination "Nazar-Makarchuk won by resignation"]

1. e4 {[%clk 0:04:55.3]} 1... e5 {[%clk 0:04:58.2]} 2. Nf3 {[%clk 0:04:54.7]}
2... Nc6 {[%clk 0:04:56.4]} 3. Bb5 {[%clk 0:04:49.6]} 3... a6 {[%clk 0:04:54.3]}
4. Bxc6 {[%clk 0:04:49.1]} 4... dxc6 {[%clk 0:04:52.9]} 5. O-O {[%clk
0:04:48.6]} 5... f6 {[%clk 0:04:50.6]} 6. d4 {[%clk 0:04:48.1]} 6... exd4 {[%clk
0:04:48.4]} 7. Qxd4 {[%clk 0:04:46.9]} 7... Qxd4 {[%clk 0:04:45.6]} 8. Nxd4
{[%clk 0:04:46.2]} 8... Bc5 {[%clk 0:04:42.4]} 9. Nf3 {[%clk 0:04:44.4]} 9...
Be6 {[%clk 0:04:40.4]} 10. Nc3 {[%clk 0:04:44]} 10... O-O-O {[%clk 0:04:38.4]}
11. Be3 {[%clk 0:04:43.1]} 11... Bd6 {[%clk 0:04:25.8]} 12. Rfd1 {[%clk
0:04:40.4]} 12... Ne7 {[%clk 0:04:23.5]} 13. Nd4 {[%clk 0:04:39.1]} 13... Bf7
{[%clk 0:04:18.1]} 14. Nf5 {[%clk 0:04:34.8]} 14... Nxf5 {[%clk 0:04:14.1]} 15.
exf5 {[%clk 0:04:33.9]} 15... g6 {[%clk 0:04:09.4]} 16. fxg6 {[%clk 0:04:32.4]}
16... hxg6 {[%clk 0:04:07.4]} 17. g3 {[%clk 0:04:32]} 17... Rh7 {[%clk
0:03:46.6]} 18. Ne4 {[%clk 0:04:31.1]} 18... Be7 {[%clk 0:03:40.8]} 19. Bd4
{[%clk 0:04:22.1]} 19... f5 {[%clk 0:03:37.9]} 20. Nf6 {[%clk 0:04:14.4]} 20...
Rh6 {[%clk 0:03:23.9]} 21. Be5 {[%clk 0:04:02.4]} 21... Rdh8 {[%clk 0:03:12.9]}
22. h4 {[%clk 0:03:59.6]} 22... g5 {[%clk 0:03:04]} 23. hxg5 {[%clk 0:03:44.9]}
23... Rh1+ {[%clk 0:02:44.5]} 24. Kg2 {[%clk 0:03:41.4]} 24... R8h2+ {[%clk
0:02:39.2]} 25. Kf3 {[%clk 0:03:40]} 25... Rxd1 {[%clk 0:02:28.4]} 26. Rxd1
{[%clk 0:03:38.1]} 26... Bxf6 {[%clk 0:02:20.4]} 27. Bxf6 {[%clk 0:03:34.9]}
27... Bd5+ {[%clk 0:02:17.8]} 28. Ke3 {[%clk 0:03:31.9]} 28... Rh8 {[%clk
0:02:11]} 29. Rd2 {[%clk 0:03:30.6]} 29... Re8+ {[%clk 0:02:07.7]} 30. Kf4
{[%clk 0:03:25.9]} 30... Be4 {[%clk 0:02:02.2]} 31. Re2 {[%clk 0:03:22.4]} 31...
Rg8 {[%clk 0:01:52.2]} 32. g4 {[%clk 0:03:20.3]} 32... Bd5 {[%clk 0:01:32.6]}
33. gxf5 {[%clk 0:03:18.1]} 33... Kd7 {[%clk 0:01:30.4]} 34. g6 {[%clk
0:03:17.2]} 34... b5 {[%clk 0:01:27.5]} 35. a3 {[%clk 0:03:16.2]} 35... Rf8
{[%clk 0:01:10.1]} 36. Re7+ {[%clk 0:03:14.9]} 36... Kd6 {[%clk 0:01:07.8]} 37.
Kg5 {[%clk 0:03:08.8]} 37... Bg8 {[%clk 0:00:54]} 38. Rg7 {[%clk 0:03:06.8]}
38... c5 {[%clk 0:00:49.7]} 39. Be7+ {[%clk 0:03:05.8]} 1-0

[Event "Live Chess"]
[Site "Chess.com"]
[Date "2024.06.01"]
[Round "-"]
[White "Andysav3"]
[Black "Nazarenko_vital"]
[Result "1-0"]
[WhiteElo "1876"]
[BlackElo "1471"]
[TimeControl "300"]
[EndTime "11:50:31 PDT"]
[Termination "Andysav3 won on time"]

1. e4 {[%clk 0:04:57.4]} 1... d5 {[%clk 0:04:58.1]} 2. exd5 {[%clk 0:04:49]}
2... Qxd5 {[%clk 0:04:57.6]} 3. Nf3 {[%clk 0:04:47.4]} 3... Nf6 {[%clk
0:04:55.6]} 4. Be2 {[%clk 0:04:46.4]} 4... Bf5 {[%clk 0:04:52.6]} 5. Nc3 {[%clk
0:04:43.2]} 5... Qa5 {[%clk 0:04:50.4]} 6. O-O {[%clk 0:04:36.3]} 6... c6 {[%clk
0:04:49.2]} 7. a3 {[%clk 0:04:33.4]} 7... e6 {[%clk 0:04:47.3]} 8. d4 {[%clk
0:04:25.5]} 8... Qc7 {[%clk 0:04:34.6]} 9. h3 {[%clk 0:04:14]} 9... Nbd7 {[%clk
0:04:33.1]} 10. Bg5 {[%clk 0:04:04]} 10... h6 {[%clk 0:04:28.3]} 11. Be3 {[%clk
0:04:00]} 11... Bd6 {[%clk 0:04:27]} 12. Qd2 {[%clk 0:03:53.1]} 12... g5 {[%clk
0:04:24.7]} 13. Ne5 {[%clk 0:03:26.1]} 13... Nxe5 {[%clk 0:04:08.5]} 14. dxe5
{[%clk 0:03:24.9]} 14... Bxe5 {[%clk 0:04:07.3]} 15. Bd3 {[%clk 0:03:10.1]}
15... Bxd3 {[%clk 0:03:50.8]} 16. Qxd3 {[%clk 0:03:06.9]} 16... g4 {[%clk
0:03:25.2]} 17. Bd4 {[%clk 0:02:55.2]} 17... gxh3 {[%clk 0:03:15.1]} 18. Bxe5
{[%clk 0:02:52.1]} 18... Qxe5 {[%clk 0:03:09.9]} 19. Qxh3 {[%clk 0:02:50.9]}
19... O-O-O {[%clk 0:02:58.6]} 20. Rfe1 {[%clk 0:02:48.8]} 20... Qg5 {[%clk
0:02:48]} 21. Re2 {[%clk 0:02:40.5]} 21... Rhg8 {[%clk 0:02:45.8]} 22. Rae1
{[%clk 0:02:35.6]} 22... Rd4 {[%clk 0:02:07]} 23. Re5 {[%clk 0:02:25.6]} 23...
Qg4 {[%clk 0:01:36.8]} 24. Qxg4 {[%clk 0:02:20.9]} 24... Rdxg4 {[%clk
0:01:25.6]} 25. g3 {[%clk 0:02:16.7]} 25... h5 {[%clk 0:01:23.8]} 26. Ne2 {[%clk
0:02:07.4]} 26... h4 {[%clk 0:01:21.3]} 27. f3 {[%clk 0:01:57.6]} 27... R4g7
{[%clk 0:00:56]} 28. g4 {[%clk 0:01:50.1]} 28... Rh7 {[%clk 0:00:33.9]} 29. Kh1
{[%clk 0:01:31.2]} 29... Nd5 {[%clk 0:00:26.1]} 30. c4 {[%clk 0:01:26.4]} 30...
Nb6 {[%clk 0:00:15.2]} 31. b3 {[%clk 0:01:21]} 31... Nd7 {[%clk 0:00:13.3]} 32.
Rh5 {[%clk 0:01:18.3]} 32... Rxh5 {[%clk 0:00:09.8]} 33. gxh5 {[%clk 0:01:17.1]}
33... e5 {[%clk 0:00:06.5]} 34. f4 {[%clk 0:01:07.2]} 34... Rh8 {[%clk
0:00:00.2]} 35. fxe5 {[%clk 0:01:02.9]} 1-0

[Event "Live Chess"]
[Site "Chess.com"]
[Date "2024.06.01"]
[Round "-"]
[White "Isambard_Thomas"]
[Black "nigelst"]
[Result "1-0"]
[WhiteElo "2166"]
[BlackElo "1667"]
[TimeControl "300"]
[EndTime "11:50:34 PDT"]
[Termination "Isambard_Thomas won by checkmate"]

1. d4 {[%clk 0:04:58]} 1... Nf6 {[%clk 0:04:57.9]} 2. Nf3 {[%clk 0:04:57.6]}
2... e6 {[%clk 0:04:56.9]} 3. Bg5 {[%clk 0:04:57.3]} 3... c5 {[%clk 0:04:52.6]}
4. c3 {[%clk 0:04:55.8]} 4... Be7 {[%clk 0:04:48.4]} 5. e3 {[%clk 0:04:55.1]}
5... b6 {[%clk 0:04:47]} 6. Bd3 {[%clk 0:04:54.2]} 6... Bb7 {[%clk 0:04:46]} 7.
Nbd2 {[%clk 0:04:53.4]} 7... O-O {[%clk 0:04:40.7]} 8. h4 {[%clk 0:04:51.9]}
8... cxd4 {[%clk 0:04:37.4]} 9. exd4 {[%clk 0:04:50.6]} 9... d6 {[%clk
0:04:36.9]} 10. Qe2 {[%clk 0:04:49.1]} 10... Nbd7 {[%clk 0:04:35.7]} 11. O-O-O
{[%clk 0:04:47.7]} 11... Rc8 {[%clk 0:04:34.1]} 12. Kb1 {[%clk 0:04:44.5]} 12...
Nd5 {[%clk 0:04:31.5]} 13. Rc1 {[%clk 0:04:31]} 13... Re8 {[%clk 0:04:14.6]} 14.
Ne4 {[%clk 0:04:08.3]} 14... h6 {[%clk 0:03:51.2]} 15. Nxd6 {[%clk 0:04:03.3]}
15... hxg5 {[%clk 0:03:46.1]} 16. Nxb7 {[%clk 0:03:59.7]} 16... Qc7 {[%clk
0:03:44.4]} 17. hxg5 {[%clk 0:03:54.8]} 17... Qxb7 {[%clk 0:03:42.9]} 18. Ne5
{[%clk 0:03:50.6]} 18... Nxe5 {[%clk 0:03:40]} 19. Rh8+ {[%clk 0:03:39.9]} 19...
Kxh8 {[%clk 0:03:35.8]} 20. Qh5+ {[%clk 0:03:39]} 20... Kg8 {[%clk 0:03:34.8]}
21. Qh7+ {[%clk 0:03:38.3]} 21... Kf8 {[%clk 0:03:34]} 22. Qh8# {[%clk
0:03:37.7]} 1-0

[Event "Live Chess"]
[Site "Chess.com"]
[Date "2024.06.01"]
[Round "-"]
[White "JavaidMiah"]
[Black "PatientChessPapa"]
[Result "1-0"]
[WhiteElo "1184"]
[BlackElo "776"]
[TimeControl "300"]
[EndTime "11:50:36 PDT"]
[Termination "JavaidMiah won on time"]

1. c4 {[%clk 0:04:59]} 1... e6 {[%clk 0:04:54.2]} 2. Nc3 {[%clk 0:04:57]} 2...
d5 {[%clk 0:04:51.6]} 3. cxd5 {[%clk 0:04:56.3]} 3... exd5 {[%clk 0:04:49.5]} 4.
d4 {[%clk 0:04:55.7]} 4... Nf6 {[%clk 0:04:47.6]} 5. Nf3 {[%clk 0:04:55.1]} 5...
c5 {[%clk 0:04:35.6]} 6. Bg5 {[%clk 0:04:44.4]} 6... Be7 {[%clk 0:04:31.4]} 7.
dxc5 {[%clk 0:04:37.9]} 7... Bxc5 {[%clk 0:04:15.5]} 8. Bxf6 {[%clk 0:04:35.6]}
8... Qxf6 {[%clk 0:04:13.9]} 9. Qxd5 {[%clk 0:04:29.1]} 9... Nd7 {[%clk
0:03:39.1]} 10. Ne4 {[%clk 0:04:17]} 10... Bb4+ {[%clk 0:02:59.2]} 11. Nfd2
{[%clk 0:03:53.5]} 11... Bxd2+ {[%clk 0:02:54.3]} 12. Qxd2 {[%clk 0:03:48.7]}
12... Qg6 {[%clk 0:02:13.9]} 13. Qd4 {[%clk 0:03:37.1]} 13... O-O {[%clk
0:02:01.5]} 14. g3 {[%clk 0:03:35.9]} 14... Rd8 {[%clk 0:01:48.9]} 15. Qc4
{[%clk 0:02:59.9]} 15... Nb6 {[%clk 0:01:17.1]} 16. Qc2 {[%clk 0:02:55.4]} 16...
Bf5 {[%clk 0:01:00.2]} 17. Bg2 {[%clk 0:02:54]} 17... Rac8 {[%clk 0:00:48.2]}
18. Rd1 {[%clk 0:01:51.1]} 18... Rxd1+ {[%clk 0:00:32.7]} 19. Qxd1 {[%clk
0:01:43.6]} 19... h6 {[%clk 0:00:10.5]} 20. Nc3 {[%clk 0:01:38.1]} 20... Bc2
{[%clk 0:00:07.8]} 21. Qc1 {[%clk 0:01:22.6]} 21... Nc4 {[%clk 0:00:04.4]} 22.
O-O {[%clk 0:01:20.3]} 1-0

[Event "Live Chess"]
[Site "Chess.com"]
[Date "2024.06.01"]
[Round "-"]
[White "Colm_Buckley"]
[Black "Trendle"]
[Result "0-1"]
[WhiteElo "1818"]
[BlackElo "2621"]
[TimeControl "300"]
[EndTime "11:50:37 PDT"]
[Termination "Trendle won by resignation"]

1. d4 {[%clk 0:04:56.5]} 1... Nf6 {[%clk 0:04:55.6]} 2. c4 {[%clk 0:04:55.4]}
2... g6 {[%clk 0:04:54.8]} 3. Nc3 {[%clk 0:04:54.8]} 3... Bg7 {[%clk 0:04:53.8]}
4. e4 {[%clk 0:04:54.4]} 4... d6 {[%clk 0:04:53.5]} 5. Be2 {[%clk 0:04:53.6]}
5... Na6 {[%clk 0:04:49.6]} 6. Nf3 {[%clk 0:04:50]} 6... c5 {[%clk 0:04:48.2]}
7. O-O {[%clk 0:04:45.1]} 7... O-O {[%clk 0:04:43.4]} 8. h3 {[%clk 0:04:42.5]}
8... cxd4 {[%clk 0:04:41.9]} 9. Nxd4 {[%clk 0:04:40.7]} 9... Nc5 {[%clk
0:04:41.6]} 10. f3 {[%clk 0:04:30.1]} 10... Nh5 {[%clk 0:04:37.5]} 11. Be3
{[%clk 0:04:25.6]} 11... a6 {[%clk 0:04:30.5]} 12. Qc2 {[%clk 0:04:17.1]} 12...
Bd7 {[%clk 0:04:28]} 13. b4 {[%clk 0:04:15]} 13... Ne6 {[%clk 0:04:24.3]} 14.
Nxe6 {[%clk 0:04:06]} 14... fxe6 {[%clk 0:04:23.7]} 15. Rfd1 {[%clk 0:03:51.4]}
15... Rc8 {[%clk 0:04:22.1]} 16. Rac1 {[%clk 0:03:40.6]} 16... Nf4 {[%clk
0:04:19.6]} 17. Bxf4 {[%clk 0:03:33.6]} 17... Rxf4 {[%clk 0:04:19.5]} 18. Qd2
{[%clk 0:03:22.5]} 18... Be5 {[%clk 0:04:10.2]} 19. Bf1 {[%clk 0:03:14.2]} 19...
Qf8 {[%clk 0:04:02.8]} 20. Ne2 {[%clk 0:03:06.3]} 20... Rf7 {[%clk 0:03:55.8]}
21. Qd3 {[%clk 0:03:01.1]} 21... Qh6 {[%clk 0:03:51.7]} 22. c5 {[%clk
0:02:52.2]} 22... Bb5 {[%clk 0:03:46.9]} 23. Qb3 {[%clk 0:02:41.6]} 23... Rcf8
{[%clk 0:03:26.8]} 24. Qxe6 {[%clk 0:02:28.5]} 24... Bxe2 {[%clk 0:03:15]} 25.
Bxe2 {[%clk 0:02:26.5]} 25... Qe3+ {[%clk 0:03:14.4]} 26. Kh1 {[%clk 0:02:03.1]}
26... Qxe2 {[%clk 0:03:11.6]} 27. cxd6 {[%clk 0:02:01.8]} 27... exd6 {[%clk
0:03:07.8]} 28. Re1 {[%clk 0:01:54.7]} 28... Qd2 {[%clk 0:03:07]} 0-1

[Event "Live Chess"]
[Site "Chess.com"]
[Date "2024.06.01"]
[Round "-"]
[White "TJ-W"]
[Black "MagnersCarlsberg2870"]
[Result "1/2-1/2"]
[WhiteElo "1575"]
[BlackElo "1876"]
[TimeControl "300"]
[EndTime "11:50:48 PDT"]
[Termination "Game drawn by agreement"]

1. e4 {[%clk 0:04:58.2]} 1... d6 {[%clk 0:04:58.2]} 2. d4 {[%clk 0:04:56.1]}
2... Nf6 {[%clk 0:04:57.4]} 3. Nc3 {[%clk 0:04:53.8]} 3... Nbd7 {[%clk
0:04:56.6]} 4. f4 {[%clk 0:04:50.2]} 4... e5 {[%clk 0:04:55.3]} 5. dxe5 {[%clk
0:04:48.4]} 5... dxe5 {[%clk 0:04:51.8]} 6. fxe5 {[%clk 0:04:47.1]} 6... Nxe5
{[%clk 0:04:49.1]} 7. Qxd8+ {[%clk 0:04:46.2]} 7... Kxd8 {[%clk 0:04:48.3]} 8.
Bf4 {[%clk 0:04:42.7]} 8... Bd6 {[%clk 0:04:42.4]} 9. O-O-O {[%clk 0:04:39.8]}
9... Bg4 {[%clk 0:04:38.2]} 10. Be2 {[%clk 0:04:26.7]} 10... Bxe2 {[%clk
0:04:36.8]} 11. Ngxe2 {[%clk 0:04:24]} 11... Nfd7 {[%clk 0:04:33.3]} 12. Bxe5
{[%clk 0:04:20.6]} 12... Nxe5 {[%clk 0:04:28.6]} 13. Rhf1 {[%clk 0:04:18.2]}
13... f6 {[%clk 0:04:25.4]} 14. Nb5 {[%clk 0:04:08.8]} 14... Ke7 {[%clk
0:04:21.9]} 15. Nxd6 {[%clk 0:04:06.2]} 15... cxd6 {[%clk 0:04:20.7]} 16. Nd4
{[%clk 0:04:04.1]} 16... g6 {[%clk 0:04:10.8]} 17. Nb5 {[%clk 0:03:55.5]} 17...
Rhd8 {[%clk 0:03:59.7]} 18. Rf2 {[%clk 0:03:48.3]} 18... Rd7 {[%clk 0:03:35.9]}
19. Rdf1 {[%clk 0:03:41]} 19... a6 {[%clk 0:03:29.3]} 20. Nc3 {[%clk 0:03:38.4]}
20... Ng4 {[%clk 0:03:22.4]} 21. Nd5+ {[%clk 0:03:23.1]} 21... Ke6 {[%clk
0:03:16.4]} 22. Nxf6 {[%clk 0:03:14]} 22... Nxf2 {[%clk 0:03:09.2]} 23. Nxd7
{[%clk 0:03:11.9]} 23... Kxd7 {[%clk 0:03:08.2]} 24. Rxf2 {[%clk 0:03:09.9]}
24... Ke6 {[%clk 0:03:07.3]} 25. Kd2 {[%clk 0:03:07.4]} 1/2-1/2

[Event "Live Chess"]
[Site "Chess.com"]
[Date "2024.06.01"]
[Round "-"]
[White "Tushinskiy"]
[Black "Stanbad1"]
[Result "0-1"]
[WhiteElo "2207"]
[BlackElo "2692"]
[TimeControl "300"]
[EndTime "11:50:49 PDT"]
[Termination "Stanbad1 won by resignation"]

1. d4 {[%clk 0:04:56.4]} 1... Nf6 {[%clk 0:04:58.9]} 2. c3 {[%clk 0:04:56.3]}
2... g6 {[%clk 0:04:57.8]} 3. Nf3 {[%clk 0:04:55.9]} 3... Bg7 {[%clk 0:04:57.2]}
4. Bf4 {[%clk 0:04:55.5]} 4... d6 {[%clk 0:04:56.6]} 5. Bg3 {[%clk 0:04:55.4]}
5... O-O {[%clk 0:04:56.2]} 6. Nbd2 {[%clk 0:04:55.3]} 6... b6 {[%clk
0:04:55.5]} 7. e4 {[%clk 0:04:53.8]} 7... Bb7 {[%clk 0:04:55.1]} 8. Bd3 {[%clk
0:04:53.3]} 8... Nbd7 {[%clk 0:04:53.6]} 9. Qe2 {[%clk 0:04:52.2]} 9... c5
{[%clk 0:04:53.1]} 10. d5 {[%clk 0:04:51.3]} 10... Nh5 {[%clk 0:04:50.9]} 11.
O-O {[%clk 0:04:49.6]} 11... Nxg3 {[%clk 0:04:42.9]} 12. hxg3 {[%clk 0:04:49.5]}
12... Ne5 {[%clk 0:04:42]} 13. Nxe5 {[%clk 0:04:48.6]} 13... Bxe5 {[%clk
0:04:41.9]} 14. f4 {[%clk 0:04:47.2]} 14... Bg7 {[%clk 0:04:39]} 15. Nf3 {[%clk
0:04:45.6]} 15... e6 {[%clk 0:04:37.4]} 16. dxe6 {[%clk 0:04:44.3]} 16... fxe6
{[%clk 0:04:37.3]} 17. Rad1 {[%clk 0:04:43.3]} 17... d5 {[%clk 0:04:27.2]} 18.
e5 {[%clk 0:04:41.3]} 18... Qe7 {[%clk 0:04:24.1]} 19. Ng5 {[%clk 0:04:39.8]}
19... h6 {[%clk 0:04:21.5]} 20. Nf3 {[%clk 0:04:38]} 20... g5 {[%clk 0:04:17]}
21. fxg5 {[%clk 0:04:36.7]} 21... hxg5 {[%clk 0:04:16.9]} 22. Nh2 {[%clk
0:04:36.1]} 22... Rxf1+ {[%clk 0:04:14.2]} 23. Rxf1 {[%clk 0:04:36]} 23... Rf8
{[%clk 0:04:12.8]} 24. Rxf8+ {[%clk 0:04:34.4]} 24... Kxf8 {[%clk 0:04:11]} 25.
Ng4 {[%clk 0:04:31.2]} 25... Qf7 {[%clk 0:04:05.5]} 26. Qe3 {[%clk 0:04:29.1]}
26... Qh5 {[%clk 0:03:59.5]} 27. Be2 {[%clk 0:04:20.7]} 27... Qg6 {[%clk
0:03:51.6]} 28. Bd3 {[%clk 0:04:14.3]} 28... Qh5 {[%clk 0:03:50.5]} 29. Qf3+
{[%clk 0:04:03.9]} 29... Ke7 {[%clk 0:03:47.4]} 30. c4 {[%clk 0:03:57.1]} 30...
Qf7 {[%clk 0:03:44.5]} 31. Qe3 {[%clk 0:03:47.8]} 31... Qh5 {[%clk 0:03:31.6]}
32. Be2 {[%clk 0:03:28.1]} 32... dxc4 {[%clk 0:03:23.5]} 33. a4 {[%clk
0:03:25.5]} 33... Qg6 {[%clk 0:03:19.3]} 34. a5 {[%clk 0:03:22.6]} 34... Qb1+
{[%clk 0:03:17.4]} 35. Kh2 {[%clk 0:03:17.3]} 35... Qf5 {[%clk 0:03:15.4]} 36.
axb6 {[%clk 0:03:15.3]} 36... axb6 {[%clk 0:03:15.3]} 37. Bf3 {[%clk 0:03:09.1]}
37... Bxf3 {[%clk 0:03:12.9]} 38. gxf3 {[%clk 0:03:09]} 38... Qc2+ {[%clk
0:03:11.5]} 39. Kh3 {[%clk 0:03:08.1]} 39... Qf5 {[%clk 0:02:54.6]} 40. Qe2
{[%clk 0:02:58.7]} 40... Qd3 {[%clk 0:02:49.3]} 41. Qe1 {[%clk 0:02:55.4]} 41...
Qxf3 {[%clk 0:02:46.9]} 42. Qa1 {[%clk 0:02:48.6]} 42... Kf7 {[%clk 0:02:42.9]}
43. Qa7+ {[%clk 0:02:46.5]} 43... Kg6 {[%clk 0:02:41.5]} 44. Qxb6 {[%clk
0:02:36.3]} 44... Kf5 {[%clk 0:02:38.1]} 45. Ne3+ {[%clk 0:02:09.3]} 45... Qxe3
{[%clk 0:02:35.5]} 46. Qc7 {[%clk 0:02:06.6]} 46... g4+ {[%clk 0:02:31.2]} 47.
Kh2 {[%clk 0:02:04.1]} 47... Qe2+ {[%clk 0:02:29.3]} 48. Kh1 {[%clk 0:02:03.4]}
48... Bxe5 {[%clk 0:02:28.1]} 49. Qh7+ {[%clk 0:02:00.5]} 49... Kf6 {[%clk
0:02:26.6]} 50. Qh8+ {[%clk 0:01:49]} 50... Ke7 {[%clk 0:02:25.4]} 51. Qh7+
{[%clk 0:01:47.7]} 51... Kd6 {[%clk 0:02:24.6]} 52. Qb1 {[%clk 0:01:44.7]} 52...
Qf3+ {[%clk 0:02:23]} 53. Kh2 {[%clk 0:01:43.1]} 53... Qxg3+ {[%clk 0:02:22.3]}
0-1

[Event "Live Chess"]
[Site "Chess.com"]
[Date "2024.06.01"]
[Round "-"]
[White "RamsayFlayer"]
[Black "MaksymYurii"]
[Result "1-0"]
[WhiteElo "1953"]
[BlackElo "934"]
[TimeControl "300"]
[EndTime "11:51:01 PDT"]
[Termination "RamsayFlayer won on time"]

1. e4 {[%clk 0:04:58.2]} 1... e5 {[%clk 0:04:58.8]} 2. Nf3 {[%clk 0:04:57.5]}
2... Nc6 {[%clk 0:04:58.1]} 3. Bb5 {[%clk 0:04:57.1]} 3... a6 {[%clk 0:04:56.4]}
4. Ba4 {[%clk 0:04:56.5]} 4... Na5 {[%clk 0:04:49.3]} 5. Nxe5 {[%clk 0:04:52.7]}
5... b5 {[%clk 0:04:47.2]} 6. Bb3 {[%clk 0:04:48.2]} 6... Nxb3 {[%clk
0:04:44.8]} 7. axb3 {[%clk 0:04:48.1]} 7... d6 {[%clk 0:04:41.9]} 8. Nf3 {[%clk
0:04:44.2]} 8... Nf6 {[%clk 0:04:38.7]} 9. O-O {[%clk 0:04:40]} 9... Be7 {[%clk
0:04:34.8]} 10. Nc3 {[%clk 0:04:37.8]} 10... Ng4 {[%clk 0:04:28]} 11. Nxb5
{[%clk 0:04:34.7]} 11... Bd7 {[%clk 0:04:22.2]} 12. Nbd4 {[%clk 0:04:31.5]}
12... Bf6 {[%clk 0:04:20.5]} 13. h3 {[%clk 0:04:26]} 13... h5 {[%clk 0:04:14.8]}
14. Nf5 {[%clk 0:04:04.9]} 14... Bxf5 {[%clk 0:04:06.3]} 15. exf5 {[%clk
0:04:04.8]} 15... Kd7 {[%clk 0:03:56.6]} 16. hxg4 {[%clk 0:03:43.6]} 16... hxg4
{[%clk 0:03:54.4]} 17. Nh2 {[%clk 0:03:43.3]} 17... Be5 {[%clk 0:03:47.4]} 18.
Nxg4 {[%clk 0:03:39.3]} 18... Qh4 {[%clk 0:03:45.2]} 19. Nxe5+ {[%clk 0:03:25]}
19... dxe5 {[%clk 0:03:42.8]} 20. f3 {[%clk 0:03:17.8]} 20... Rae8 {[%clk
0:03:08.2]} 21. Qe1 {[%clk 0:03:15.6]} 21... Qh2+ {[%clk 0:02:50.9]} 22. Kf2
{[%clk 0:03:14.3]} 22... e4 {[%clk 0:02:46.3]} 23. Qe3 {[%clk 0:02:01.3]} 23...
Qh4+ {[%clk 0:02:33.2]} 24. Kg1 {[%clk 0:01:58.1]} 24... exf3 {[%clk 0:02:25.6]}
25. Qxf3 {[%clk 0:01:46.3]} 25... Qh2+ {[%clk 0:02:18.7]} 26. Kf2 {[%clk
0:01:45.2]} 26... Qh4+ {[%clk 0:02:08.9]} 27. Kg1 {[%clk 0:01:19.2]} 27... Qd4+
{[%clk 0:01:29]} 28. Qf2 {[%clk 0:01:15.8]} 28... Qe5 {[%clk 0:00:32.3]} 29. Qf4
{[%clk 0:00:43.8]} 29... Qc5+ {[%clk 0:00:26.3]} 30. d4 {[%clk 0:00:40.5]} 30...
Qe7 {[%clk 0:00:18.4]} 31. Bd2 {[%clk 0:00:33.8]} 31... Rh4 {[%clk 0:00:15.7]}
32. Qg5 {[%clk 0:00:26.3]} 32... Reh8 {[%clk 0:00:10.8]} 33. Qxe7+ {[%clk
0:00:22.4]} 33... Kxe7 {[%clk 0:00:09.7]} 34. Bg5+ {[%clk 0:00:22]} 34... Kd6
{[%clk 0:00:06.2]} 35. Bxh4 {[%clk 0:00:21.9]} 35... Rxh4 {[%clk 0:00:05.5]} 36.
c4 {[%clk 0:00:19.2]} 36... g6 {[%clk 0:00:04.2]} 37. Rxa6+ {[%clk 0:00:17.5]}
37... Ke7 {[%clk 0:00:02.4]} 38. fxg6 {[%clk 0:00:17.1]} 38... fxg6 {[%clk
0:00:01.5]} 39. Rxg6 {[%clk 0:00:16.5]} 1-0